bitfinex/quotes_SOLUSD_20230113
["timestamp","ask_amount","ask_price","bid_price","bid_amount"]
[1673643181065,2.55132231,17.15,17.133,112.8216]
[1673643181911,2.55132231,17.15,17.137,17.0]
[1673643182633,20.0,17.151,17.137,17.0]
[1673643182961,22.55132231,17.157,17.138,20.0]
[1673643183155,29.9691928,17.156,17.139,17.0]
[1673643183367,22.55132231,17.155,17.139,17.0]
[1673643184724,22.55132231,17.155,17.134,20.0]
[1673643185351,22.55132231,17.155,17.137,20.0]
[1673643185891,22.55132231,17.155,17.138,17.0]
[1673643186434,2.55132231,17.155,17.139,20.0]
[1673643186835,2.55132231,17.157,17.14,46.38]
[1673643187151,113.3225,17.158,17.14,46.38]
[1673643187358,113.3225,17.158,17.141,20.0]
[1673643188189,113.3225,17.158,17.14,46.38]
[1673643188947,113.3225,17.158,17.141,20.0]
[1673643189149,2.00292089,17.157,17.14,46.38]
[1673643189359,22.00292089,17.157,17.14,46.38]
[1673643189762,2.00292089,17.157,17.14,46.38]
[1673643191360,2.00292089,17.157,17.141,17.0]
[1673643192077,143.2916928,17.158,17.141,17.0]
[1673643192613,143.2916928,17.158,17.14,46.38]
[1673643192828,143.2916928,17.158,17.141,20.0]
[1673643193043,119.289,17.163,17.141,20.0]
[1673643193360,20.0,17.162,17.141,20.0]
[1673643193862,20.0,17.162,17.141,132.2043]
[1673643194504,49.9691928,17.162,17.142,17.0]
[1673643194819,49.9691928,17.162,17.143,20.0]
[1673643195034,20.0,17.162,17.143,20.0]
[1673643195450,19.5,17.162,17.143,20.0]
[1673643195869,19.5,17.162,17.144,17.0]
[1673643196406,19.5,17.162,17.145,113.6172]
[1673643197232,49.4691928,17.162,17.145,113.6172]
[1673643198801,47.57665752,17.168,17.146,20.0]
[1673643199136,118.1331,17.169,17.15,46.34]
[1673643199775,118.1331,17.169,17.151,20.0]
[1673643200173,118.1331,17.169,17.151,38.67526578]
[1673643200592,118.1331,17.169,17.151,20.0]
[1673643200915,118.1331,17.169,17.152,17.0]
[1673643201137,20.0,17.168,17.152,17.0]
[1673643201643,20.0,17.168,17.153,20.0]
[1673643202919,20.0,17.168,17.153,38.67526578]
[1673643203114,20.0,17.168,17.153,20.0]
[1673643203531,118.1331,17.169,17.153,20.0]
[1673643203532,46.32,17.18,17.153,20.0]
[1673643203743,114.4403,17.181,17.16,46.34]
[1673643203965,117.2981,17.18,17.161,17.0]
[1673643204286,117.2981,17.18,17.162,20.0]
[1673643204605,117.2981,17.18,17.161,20.0]
[1673643204817,117.2981,17.18,17.16,46.34]
[1673643205030,147.2672928,17.18,17.16,46.34]
[1673643205552,193.6472928,17.18,17.16,46.34]
[1673643205740,57.0,17.179,17.155,119.1741]
[1673643206157,77.54585032,17.178,17.155,119.1741]
[1673643206388,20.0,17.177,17.15,46.34]
[1673643206598,20.0,17.169,17.142,113.6902]
[1673643206796,139.1197,17.168,17.142,113.6902]
[1673643207056,186.0888928,17.168,17.142,113.6902]
[1673643207248,186.0888928,17.168,17.146,20.0]
[1673643207249,216.0580856,17.168,17.146,20.0]
[1673643207466,216.0580856,17.168,17.142,113.6902]
[1673643207467,29.9691928,17.167,17.142,113.6902]
[1673643208096,49.9691928,17.167,17.143,20.0]
[1673643208816,49.9691928,17.167,17.146,20.0]
[1673643209351,17.0,17.166,17.147,17.0]
[1673643209665,46.38,17.16,17.142,113.6902]
[1673643209877,20.0,17.159,17.137,20.0]
[1673643210078,137.47245968,17.159,17.137,20.0]
[1673643210292,137.47245968,17.159,17.137,38.67526578]
[1673643211119,135.1511,17.159,17.138,17.0]
[1673643211349,135.1511,17.159,17.139,20.0]
[1673643211538,135.1511,17.159,17.139,38.67526578]
[1673643211964,135.1511,17.159,17.139,18.67526578]
[1673643212504,20.0,17.158,17.132,20.0]
[1673643212708,2.00889664,17.157,17.136,116.06493455]
[1673643212926,20.0,17.158,17.136,116.06493455]
[1673643213147,20.0,17.158,17.137,18.67526578]
[1673643213450,20.0,17.158,17.138,20.0]
[1673643213660,135.1511,17.159,17.138,20.0]
[1673643213854,135.1511,17.159,17.138,38.67526578]
[1673643215127,135.1511,17.159,17.141,20.0]
[1673643215537,135.1511,17.159,17.142,18.67526578]
[1673643216377,135.1511,17.159,17.143,20.0]
[1673643217677,20.0,17.159,17.143,20.0]
[1673643217873,115.4866,17.166,17.151,20.0]
[1673643219636,115.4866,17.166,17.15,46.1]
[1673643221847,115.4866,17.166,17.145,118.6442]
[1673643221848,46.02,17.16,17.136,97.38966877]
[1673643222058,2.35372642,17.159,17.136,97.38966877]
[1673643222250,20.0,17.158,17.136,97.38966877]
[1673643222459,2.7534423,17.156,17.136,97.38966877]
[1673643222673,22.7534423,17.156,17.136,97.38966877]
[1673643222899,49.9691928,17.155,17.136,97.38966877]
[1673643223214,32.83436197,17.154,17.136,97.38966877]
[1673643223409,2.86516917,17.152,17.136,97.38966877]
[1673643225433,2.86516917,17.152,17.137,20.0]
[1673643226173,2.86516917,17.155,17.137,20.0]
[1673643227099,114.8871,17.157,17.137,20.0]
[1673643227319,114.8871,17.157,17.139,20.0]
[1673643229113,114.8871,17.157,17.138,20.0]
[1673643230474,144.8562928,17.157,17.138,20.0]
[1673643231097,114.8871,17.157,17.138,20.0]
[1673643231514,114.8871,17.157,17.139,20.0]
[1673643232890,114.8871,17.157,17.138,20.0]
[1673643233104,1.96638206,17.156,17.138,20.0]
[1673643233527,144.8562928,17.157,17.138,20.0]
[1673643234049,144.8562928,17.157,17.14,46.38]
[1673643234242,144.8562928,17.157,17.141,20.0]
[1673643234581,114.8871,17.157,17.141,20.0]
[1673643235107,59.9383856,17.161,17.14,46.38]
[1673643235418,29.9691928,17.157,17.14,46.38]
[1673643238649,179.025,17.16,17.141,20.0]
[1673643239098,208.9941928,17.16,17.141,20.0]
[1673643239617,208.9941928,17.16,17.136,97.38966877]
[1673643239618,46.22,17.15,17.121,418.6878443]
[1673643239832,20.0,17.149,17.128,109.3995]
[1673643240142,20.0,17.149,17.13,46.22]
[1673643240770,23.52900723,17.153,17.13,46.22]
[1673643240981,3.52900723,17.151,17.13,46.22]
[1673643241165,23.52900723,17.151,17.13,46.22]
[1673643242974,23.52900723,17.151,17.13,65.89488486]
[1673643243192,3.52900723,17.151,17.14,46.34]
[1673643243503,133.3712,17.162,17.14,46.34]
[1673643243692,113.3712,17.162,17.141,111.9386]
[1673643244332,113.3712,17.162,17.142,20.0]
[1673643245297,113.3712,17.162,17.142,39.67488486]
[1673643245478,29.9691928,17.168,17.15,46.22]
[1673643245689,112.2334,17.167,17.15,46.22]
[1673643246135,112.2334,17.167,17.151,20.0]
[1673643246535,112.2334,17.167,17.15,46.22]
[1673643247173,112.2334,17.167,17.15,65.89899857]
[1673643247707,112.2334,17.167,17.15,46.22]
[1673643252537,142.2025928,17.167,17.145,119.8666]
[1673643252730,37.0,17.166,17.145,119.8666]
[1673643253163,56.6965628,17.165,17.145,119.8666]
[1673643253366,37.0,17.164,17.145,119.8666]
[1673643253592,73.6965628,17.164,17.145,119.8666]
[1673643253782,29.9691928,17.163,17.145,119.8666]
[1673643253993,20.0,17.162,17.145,119.8666]
[1673643254623,49.9691928,17.162,17.145,119.8666]
[1673643255353,20.0,17.162,17.145,119.8666]
[1673643255570,20.0,17.163,17.145,119.8666]
[1673643255996,29.9691928,17.162,17.145,119.8666]
[1673643256225,20.0,17.161,17.145,119.8666]
[1673643256535,49.9691928,17.161,17.145,119.8666]
[1673643259375,49.9691928,17.161,17.14,46.34]
[1673643259589,46.22,17.16,17.13,46.38]
[1673643259908,66.9691928,17.159,17.131,20.0]
[1673643260090,114.701,17.158,17.131,20.0]
[1673643260302,37.0,17.157,17.131,20.0]
[1673643260512,73.6965628,17.157,17.131,20.0]
[1673643260722,36.6965628,17.156,17.131,20.0]
[1673643260941,37.0,17.155,17.131,20.0]
[1673643261158,66.9691928,17.155,17.131,20.0]
[1673643264213,37.0,17.155,17.131,20.0]
[1673643264622,20.0,17.155,17.131,20.0]
[1673643264944,49.9691928,17.155,17.131,20.0]
[1673643267983,20.0,17.153,17.131,20.0]
[1673643268193,37.0,17.152,17.131,20.0]
[1673643268404,66.9691928,17.152,17.131,20.0]
[1673643268711,29.9691928,17.151,17.131,20.0]
[1673643268926,20.0,17.15,17.131,20.0]
[1673643269780,66.38,17.15,17.121,26.3878443]
[1673643269991,150.1729,17.149,17.123,20.0]
[1673643270180,20.0,17.148,17.123,20.0]
[1673643270510,20.0,17.147,17.122,119.2922]
[1673643270733,46.02,17.14,17.122,119.2922]
[1673643270916,20.0,17.139,17.122,119.2922]
[1673643271336,49.9691928,17.139,17.122,119.2922]
[1673643271652,29.9691928,17.138,17.122,119.2922]
[1673643271866,20.0,17.137,17.121,26.3878443]
[1673643272074,20.0,17.136,17.121,26.3878443]
[1673643272407,19.95434494,17.135,17.121,26.3878443]
[1673643272613,20.0,17.134,17.121,26.3878443]
[1673643272947,2.95434494,17.133,17.121,26.3878443]
[1673643273654,20.0,17.136,17.121,26.3878443]
[1673643273655,2.95434494,17.135,17.121,26.3878443]
[1673643275428,2.95434494,17.136,17.121,46.91319029]
[1673643275968,108.5833,17.137,17.121,26.3878443]
[1673643276810,1.96607035,17.136,17.121,26.3878443]
[1673643277015,108.5833,17.137,17.121,26.3878443]
[1673643278391,1.97370414,17.136,17.121,26.3878443]
[1673643279030,108.5833,17.137,17.121,26.3878443]
[1673643279743,108.5833,17.137,17.122,20.0]
[1673643280160,1.92646811,17.136,17.122,20.0]
[1673643280589,51.26849159,17.143,17.122,20.0]
[1673643280799,40.0,17.142,17.123,20.52534599]
[1673643281228,40.0,17.142,17.121,26.3878443]
[1673643281425,40.0,17.142,17.122,20.52534599]
[1673643281861,20.0,17.142,17.121,135.0452443]
[1673643282067,46.38,17.14,17.121,26.3878443]
[1673643282288,26.72737,17.139,17.121,26.3878443]
[1673643282480,26.72737,17.139,17.124,20.0]
[1673643283535,6.72737,17.139,17.124,20.0]
[1673643283760,66.38,17.15,17.124,20.52534599]
[1673643284080,20.0,17.139,17.125,113.1408]
[1673643284692,29.9691928,17.143,17.125,113.1408]
[1673643284897,20.0,17.142,17.125,113.1408]
[1673643285541,57.88056865,17.148,17.125,113.1408]
[1673643285862,29.9691928,17.143,17.125,113.1408]
[1673643286072,20.0,17.142,17.125,113.1408]
[1673643286783,29.9691928,17.146,17.125,113.1408]
[1673643286991,20.0,17.145,17.125,113.1408]
[1673643287630,20.0,17.145,17.126,20.0]
[1673643288053,20.0,17.147,17.126,20.0]
[1673643288264,20.0,17.147,17.127,111.5911]
[1673643288472,64.42182492,17.149,17.128,20.0]
[1673643288907,44.42182492,17.149,17.128,20.0]
[1673643289117,29.9691928,17.148,17.128,20.0]
[1673643289336,87.84976145,17.148,17.129,20.0]
[1673643289744,29.9691928,17.147,17.129,20.0]
[1673643289942,87.84976145,17.147,17.127,111.5911]
[1673643290272,87.84976145,17.146,17.127,111.5911]
[1673643290705,64.42182492,17.147,17.127,111.5911]
[1673643290706,20.0,17.144,17.127,111.5911]
[1673643290917,20.0,17.143,17.127,111.5911]
[1673643291108,49.9691928,17.143,17.127,111.5911]
[1673643291534,107.84976145,17.143,17.127,111.5911]
[1673643291734,49.9691928,17.143,17.127,111.5911]
[1673643292078,20.0,17.143,17.127,111.5911]
[1673643292265,20.0,17.147,17.127,111.5911]
[1673643292681,20.0,17.147,17.128,20.0]
[1673643292903,20.0,17.147,17.127,111.5911]
[1673643293223,49.9691928,17.147,17.127,111.5911]
[1673643293423,56.6965628,17.147,17.127,111.5911]
[1673643293634,26.72737,17.146,17.127,111.5911]
[1673643293844,43.72737,17.145,17.127,111.5911]
[1673643294055,6.72737,17.144,17.127,111.5911]
[1673643294272,37.0,17.143,17.127,111.5911]
[1673643294472,49.9691928,17.143,17.127,111.5911]
[1673643294897,20.0,17.143,17.127,111.5911]
[1673643295317,57.88056865,17.142,17.127,111.5911]
[1673643295959,20.0,17.141,17.127,111.5911]
[1673643296375,20.0,17.142,17.127,111.5911]
[1673643296991,40.0,17.142,17.127,111.5911]
[1673643297324,20.0,17.142,17.127,111.5911]
[1673643298148,40.0,17.142,17.127,111.5911]
[1673643298784,20.0,17.142,17.127,111.5911]
[1673643299202,17.0,17.141,17.127,111.5911]
[1673643299414,20.0,17.14,17.127,111.5911]
[1673643300676,20.0,17.14,17.128,20.0]
[1673643300890,20.0,17.14,17.13,46.1]
[1673643301099,17.0,17.141,17.13,46.1]
[1673643301315,116.0996,17.149,17.13,46.1]
[1673643301522,116.0996,17.149,17.131,20.0]
[1673643301738,49.9691928,17.153,17.131,20.0]
[1673643302050,116.0996,17.153,17.131,40.52534599]
[1673643302787,20.0,17.152,17.131,40.52534599]
[1673643303212,116.0996,17.153,17.131,40.52534599]
[1673643304042,146.0687928,17.153,17.131,40.52534599]
[1673643304379,146.0687928,17.153,17.131,20.0]
[1673643304677,146.0687928,17.153,17.13,66.1]
[1673643304678,20.0,17.152,17.13,66.1]
[1673643305200,69.9691928,17.152,17.13,66.1]
[1673643305608,49.9691928,17.152,17.13,66.1]
[1673643305816,49.9691928,17.152,17.131,20.0]
[1673643306673,20.0,17.152,17.131,40.52534599]
[1673643308471,20.0,17.152,17.133,20.0]
[1673643308667,20.0,17.152,17.134,17.0]
[1673643309082,49.9691928,17.152,17.134,17.0]
[1673643309286,20.0,17.15,17.134,17.0]
[1673643309496,20.0,17.149,17.134,17.0]
[1673643309713,6.72737,17.148,17.134,17.0]
[1673643309932,20.0,17.147,17.134,17.0]
[1673643310129,20.0,17.146,17.134,17.0]
[1673643310346,20.0,17.145,17.134,17.0]
[1673643310756,49.9691928,17.145,17.134,17.0]
[1673643310968,20.0,17.143,17.134,17.0]
[1673643311181,20.0,17.142,17.134,17.0]
[1673643311600,20.0,17.142,17.123,20.0]
[1673643311833,20.0,17.142,17.128,17.0]
[1673643313295,117.5962,17.143,17.128,17.0]
[1673643313501,6.72737,17.147,17.129,20.0]
[1673643313719,46.38,17.15,17.13,46.1]
[1673643313933,109.1317,17.151,17.131,17.0]
[1673643314121,109.1317,17.151,17.132,20.0]
[1673643314328,109.1317,17.151,17.133,17.0]
[1673643314761,66.38,17.15,17.133,17.0]
[1673643315179,96.3491928,17.15,17.133,17.0]
[1673643315603,96.3491928,17.15,17.132,17.0]
[1673643316019,20.0,17.15,17.132,17.0]
[1673643316231,20.0,17.15,17.133,20.0]
[1673643316449,20.0,17.15,17.134,17.0]
[1673643318131,49.9691928,17.15,17.13,178.4758669]
[1673643318348,69.9691928,17.15,17.13,158.3718]
[1673643318767,20.0,17.149,17.13,158.3718]
[1673643318976,69.9691928,17.15,17.13,158.3718]
[1673643319177,49.9691928,17.15,17.13,158.3718]
[1673643319377,49.9691928,17.15,17.131,20.0]
[1673643320012,49.9691928,17.15,17.132,17.0]
[1673643320553,95.9891928,17.15,17.132,17.0]
[1673643320747,95.9891928,17.15,17.131,17.0]
[1673643321386,95.9891928,17.15,17.132,20.0]
[1673643321606,66.02,17.15,17.132,20.0]
[1673643321925,20.0,17.15,17.133,17.0]
[1673643322120,20.0,17.15,17.134,20.0]
[1673643322334,20.0,17.15,17.135,17.0]
[1673643322951,20.0,17.15,17.136,108.5054]
[1673643323167,20.0,17.15,17.137,17.0]
[1673643323609,20.0,17.15,17.138,20.0]
[1673643323819,20.0,17.155,17.139,17.0]
[1673643324545,46.9691928,17.154,17.136,108.5054]
[1673643324764,20.0,17.153,17.136,108.5054]
[1673643324950,49.9691928,17.153,17.136,108.5054]
[1673643325160,29.9691928,17.152,17.136,108.5054]
[1673643325502,20.0,17.151,17.136,108.5054]
[1673643326023,138.0838928,17.156,17.137,17.0]
[1673643326246,138.0838928,17.156,17.139,20.0]
[1673643326425,108.1147,17.156,17.14,17.0]
[1673643326966,108.1147,17.156,17.14,63.38]
[1673643327161,108.1147,17.156,17.141,20.0]
[1673643327371,29.9691928,17.161,17.142,17.0]
[1673643327588,118.6046,17.161,17.142,17.0]
[1673643328219,118.6046,17.161,17.143,20.0]
[1673643328426,20.0,17.16,17.144,17.0]
[1673643328639,20.0,17.16,17.145,115.8371]
[1673643328847,20.0,17.16,17.146,17.0]
[1673643329281,20.0,17.163,17.146,17.0]
[1673643329472,20.0,17.163,17.147,20.0]
[1673643329686,29.9691928,17.162,17.145,115.8371]
[1673643329889,20.0,17.161,17.145,115.8371]
[1673643330331,29.9691928,17.16,17.145,115.8371]
[1673643330546,49.9691928,17.16,17.138,20.0]
[1673643330742,20.0,17.159,17.138,20.0]
[1673643330946,49.9691928,17.159,17.138,20.0]
[1673643331155,29.9691928,17.158,17.139,20.0]
[1673643331372,20.0,17.159,17.139,20.0]
[1673643331684,29.9691928,17.158,17.139,20.0]
[1673643331903,29.9691928,17.158,17.14,17.0]
[1673643332124,29.9691928,17.158,17.138,40.0]
[1673643333385,29.9691928,17.158,17.139,37.0]
[1673643334317,29.9691928,17.158,17.139,17.0]
[1673643334734,29.9691928,17.158,17.139,11.27]
[1673643336100,20.0,17.159,17.139,11.27]
[1673643336309,20.0,17.159,17.14,66.22]
[1673643336525,20.0,17.161,17.14,66.22]
[1673643336954,49.9691928,17.161,17.141,17.0]
[1673643339369,29.9691928,17.16,17.141,17.0]
[1673643339787,20.0,17.159,17.14,46.22]
[1673643340208,49.9691928,17.159,17.14,46.22]
[1673643340427,100.13642812,17.159,17.137,115.3093]
[1673643340738,23.72737,17.158,17.137,115.3093]
[1673643340958,26.72737,17.157,17.137,115.3093]
[1673643341162,26.72737,17.156,17.137,115.3093]
[1673643341372,112.4832,17.155,17.137,115.3093]
[1673643341563,20.0,17.154,17.137,115.3093]
[1673643341773,20.0,17.154,17.138,17.0]
[1673643342743,49.9691928,17.154,17.137,115.3093]
[1673643343353,29.9691928,17.153,17.13,66.38]
[1673643343678,20.0,17.152,17.132,119.149]
[1673643343878,46.38,17.15,17.132,119.149]
[1673643344087,20.0,17.149,17.132,119.149]
[1673643344292,49.9691928,17.149,17.132,119.149]
[1673643345136,49.9691928,17.149,17.137,17.0]
[1673643347678,20.0,17.149,17.137,17.0]
[1673643347895,20.0,17.153,17.137,17.0]
[1673643348418,20.0,17.154,17.137,17.0]
[1673643349344,49.9691928,17.154,17.137,17.0]
[1673643350091,69.9691928,17.154,17.137,17.0]
[1673643350938,20.0,17.153,17.132,119.149]
[1673643351249,49.9691928,17.153,17.132,119.149]
[1673643351462,49.9691928,17.152,17.133,20.0]
[1673643351648,29.9691928,17.152,17.133,20.0]
[1673643351855,20.0,17.151,17.133,20.0]
[1673643352282,20.0,17.151,17.137,20.0]
[1673643352512,20.0,17.151,17.137,37.0]
[1673643352913,20.0,17.151,17.137,17.0]
[1673643353988,20.0,17.151,17.138,20.0]
[1673643354176,46.38,17.16,17.14,46.1]
[1673643354379,112.2782,17.16,17.14,46.1]
[1673643354594,112.2782,17.16,17.141,17.0]
[1673643354595,158.2982,17.16,17.141,17.0]
[1673643354825,29.9691928,17.159,17.141,17.0]
[1673643355038,49.9691928,17.159,17.141,17.0]
[1673643355570,29.9691928,17.158,17.141,17.0]
[1673643356589,20.0,17.159,17.141,17.0]
[1673643356590,158.2982,17.16,17.141,17.0]
[1673643356799,20.0,17.159,17.141,17.0]
[1673643357764,40.0,17.159,17.141,17.0]
[1673643358372,69.9691928,17.159,17.141,17.0]
[1673643358596,20.0,17.158,17.141,17.0]
[1673643359572,69.9691928,17.159,17.141,17.0]
[1673643360702,20.0,17.158,17.141,17.0]
[1673643361783,69.9691928,17.159,17.141,17.0]
[1673643362514,49.9691928,17.159,17.141,17.0]
[1673643362705,20.0,17.159,17.141,17.0]
[1673643362916,20.0,17.159,17.142,20.0]
[1673643363356,20.0,17.159,17.143,17.0]
[1673643364928,20.0,17.166,17.144,20.0]
[1673643365247,20.0,17.165,17.145,17.0]
[1673643365642,20.0,17.165,17.145,125.1841]
[1673643365859,20.0,17.166,17.145,125.1841]
[1673643366069,20.0,17.166,17.146,20.0]
[1673643366506,20.0,17.166,17.147,17.0]
[1673643367029,20.0,17.166,17.145,102.1841]
[1673643367653,29.9691928,17.165,17.145,102.1841]
[1673643367964,20.0,17.164,17.146,20.0]
[1673643368295,110.3298,17.167,17.147,20.0]
[1673643368607,110.3298,17.167,17.15,46.22]
[1673643368793,110.3298,17.167,17.151,20.0]
[1673643369225,157.7125619,17.172,17.152,17.0]
[1673643369531,29.9691928,17.17,17.152,17.0]
[1673643370623,111.4514,17.173,17.152,17.0]
[1673643370828,20.0,17.172,17.152,17.0]
[1673643371869,20.0,17.172,17.15,46.22]
[1673643372085,20.0,17.172,17.151,37.0]
[1673643372502,513.77309257,17.188,17.151,37.0]
[1673643372503,30.17258582,17.193,17.16,232.16]
[1673643372841,116.0005,17.189,17.17,46.22]
[1673643373051,116.0005,17.189,17.171,119.1216]
[1673643373240,116.0005,17.189,17.172,17.0]
[1673643373658,116.0005,17.189,17.17,46.22]
[1673643373659,122.72787,17.189,17.162,20.0]
[1673643373890,29.9691928,17.188,17.163,136.1216]
[1673643374084,6.72737,17.187,17.163,136.1216]
[1673643374297,20.0,17.186,17.163,136.1216]
[1673643374729,20.0,17.185,17.163,136.1216]
[1673643375047,20.0,17.184,17.163,136.1216]
[1673643375253,20.0,17.184,17.163,119.1216]
[1673643375254,79.9383856,17.184,17.163,119.1216]
[1673643375444,49.9691928,17.184,17.163,119.1216]
[1673643375654,29.9691928,17.183,17.163,119.1216]
[1673643375882,20.0,17.182,17.163,119.1216]
[1673643376093,118.9272,17.181,17.163,119.1216]
[1673643376295,20.0,17.18,17.163,119.1216]
[1673643377760,40.0,17.18,17.163,119.1216]
[1673643378180,40.0,17.18,17.16,46.77]
[1673643378494,20.0,17.179,17.16,46.77]
[1673643378703,20.0,17.178,17.16,46.77]
[1673643379761,20.0,17.179,17.16,46.77]
[1673643380404,20.0,17.18,17.16,46.77]
[1673643381215,20.0,17.18,17.16,68.58707353]
[1673643381434,20.0,17.18,17.161,20.0]
[1673643381855,115.37,17.189,17.17,46.34]
[1673643382077,20.0,17.188,17.17,46.34]
[1673643382488,115.37,17.189,17.17,46.34]
[1673643384793,115.37,17.189,17.17,68.15707353]
[1673643385213,20.0,17.188,17.17,68.15707353]
[1673643385427,20.0,17.188,17.17,46.34]
[1673643386279,20.0,17.188,17.17,68.15707353]
[1673643386804,20.0,17.187,17.17,46.34]
[1673643387232,20.0,17.187,17.169,114.6146]
[1673643387969,20.0,17.187,17.17,46.1]
[1673643388183,20.0,17.188,17.17,46.1]
[1673643388363,20.0,17.188,17.17,67.91707353]
[1673643388787,20.0,17.188,17.17,46.1]
[1673643389536,20.0,17.192,17.171,41.81707353]
[1673643389729,49.9691928,17.194,17.172,108.7098]
[1673643390151,20.0,17.193,17.172,108.7098]
[1673643390375,20.0,17.192,17.173,21.81707353]
[1673643390584,20.0,17.192,17.172,108.7098]
[1673643390794,20.0,17.192,17.173,21.81707353]
[1673643391005,20.0,17.194,17.173,21.81707353]
[1673643392383,49.9691928,17.194,17.172,108.7098]
[1673643392594,20.0,17.193,17.172,108.7098]
[1673643392779,20.0,17.192,17.172,108.7098]
[1673643393197,20.0,17.194,17.172,108.7098]
[1673643393520,3500.802864,17.195,17.174,20.0]
[1673643393744,3500.802864,17.195,17.175,20.0]
[1673643393945,3500.802864,17.195,17.172,108.7098]
[1673643393946,3530.7720568,17.195,17.172,108.7098]
[1673643394575,20.0,17.194,17.172,108.7098]
[1673643394899,49.9691928,17.193,17.172,108.7098]
[1673643395310,29.9691928,17.192,17.172,108.7098]
[1673643395521,20.0,17.191,17.172,108.7098]
[1673643395735,3500.802864,17.195,17.172,108.7098]
[1673643396379,3500.802864,17.195,17.173,20.0]
[1673643397115,3500.802864,17.195,17.172,108.7098]
[1673643397116,20.0,17.194,17.172,108.7098]
[1673643397423,20.0,17.189,17.172,108.7098]
[1673643397745,20.0,17.187,17.172,108.7098]
[1673643398137,29.9691928,17.186,17.172,108.7098]
[1673643399317,20.0,17.188,17.172,108.7098]
[1673643399631,29.9691928,17.187,17.172,108.7098]
[1673643401015,20.0,17.188,17.172,108.7098]
[1673643401439,20.0,17.188,17.173,20.0]
[1673643402273,20.0,17.188,17.172,108.7098]
[1673643402906,46.23,17.2,17.172,130.52687353]
[1673643403136,110.032,17.198,17.173,20.0]
[1673643403533,110.032,17.198,17.174,41.81707353]
[1673643403744,110.032,17.198,17.18,46.38]
[1673643403959,110.032,17.198,17.181,109.5127]
[1673643405427,29.9691928,17.202,17.181,109.5127]
[1673643405668,115.17,17.208,17.182,20.0]
[1673643405867,109.862,17.207,17.182,41.81707353]
[1673643406179,109.862,17.207,17.183,41.81707353]
[1673643406389,3350.802864,17.195,17.19,46.1]
[1673643406602,3090.131764,17.195,17.19,46.1]
[1673643407023,3090.131764,17.195,17.183,20.0]
[1673643407216,3090.131764,17.195,17.184,20.0]
[1673643407857,3090.131764,17.195,17.181,20.0]
[1673643410073,3090.131764,17.195,17.181,41.81707353]
[1673643410383,3090.131764,17.195,17.182,20.0]
[1673643410913,3090.131764,17.195,17.182,41.81707353]
[1673643411123,3090.131764,17.195,17.183,20.0]
[1673643411434,20.0,17.194,17.181,20.0]
[1673643411978,3090.131764,17.195,17.181,20.0]
[1673643412193,2408.52303346,17.195,17.19,46.1]
[1673643412378,2408.52303346,17.195,17.194,20.0]
[1673643412379,1320.85359351,17.195,17.194,20.0]
[1673643412598,188.5784972,17.195,17.194,203.61074]